[Event "Titled Tuesday Blitz April 12 Early 2022"]
[White "Silva, Kaua Marques"]
[Black "Beerdsen, Thomas"]
[WhiteFideId "22701168"]
[BlackFideId "1030108"]
[WhiteElo "2071"]
[BlackElo "2585"]
[Result "1/2-1/2"]
[Round "03"]
[TimeControl "180+1"]
[Date "2022.04.13"]
[WhiteClock "0:00:06"]
[BlackClock "0:00:06"]

1. e4 {[%clk 0:02:59]}  g5 {[%clk 0:02:59]} 2. h4 {[%clk 0:02:54]}  gxh4 {[%clk 0:02:58]} 3. Nf3 {[%clk 0:02:53]}  d5 {[%clk 0:02:56]} 4. exd5 {[%clk 0:02:52]}  Qxd5 {[%clk 0:02:54]} 5. Nc3 {[%clk 0:02:52]}  Qe6+ {[%clk 0:02:52]} 6. Be2 {[%clk 0:02:52]}  Nf6 {[%clk 0:02:33]} 7. d3 {[%clk 0:02:47]}  Rg8 {[%clk 0:02:33]} 8. Nxh4 {[%clk 0:02:46]}  Nc6 {[%clk 0:02:31]} 9. Be3 {[%clk 0:02:45]}  Bg7 {[%clk 0:02:23]} 10. Qd2 {[%clk 0:02:36]}  Nd5 {[%clk 0:02:22]} 11. Nxd5 {[%clk 0:02:32]}  Qxd5 {[%clk 0:02:23]} 12. c4 {[%clk 0:02:26]}  Qd6 {[%clk 0:02:15]} 13. O-O-O {[%clk 0:02:21]}  Be6 {[%clk 0:02:15]} 14. Kb1 {[%clk 0:02:21]}  O-O-O {[%clk 0:02:10]} 15. a3 {[%clk 0:02:14]}  Kb8 {[%clk 0:02:07]} 16. Qc2 {[%clk 0:02:12]}  Nd4 {[%clk 0:02:02]} 17. Bxd4 {[%clk 0:02:08]}  Bxd4 {[%clk 0:02:02]} 18. Bf3 {[%clk 0:02:06]}  Qb6 {[%clk 0:01:56]} 19. Rd2 {[%clk 0:02:00]}  Rg5 {[%clk 0:01:55]} 20. g3 {[%clk 0:01:51]}  Ra5 {[%clk 0:01:54]} 21. Kc1 {[%clk 0:01:47]}  Rc5 {[%clk 0:01:14]} 22. Ng2 {[%clk 0:01:14]}  Qa6 {[%clk 0:01:11]} 23. Kb1 {[%clk 0:01:04]}  b5 {[%clk 0:01:09]} 24. Nf4 {[%clk 0:00:50]}  Bf5 {[%clk 0:01:10]} 25. Qb3 {[%clk 0:00:37]}  Qb6 {[%clk 0:01:02]} 26. g4 {[%clk 0:00:33]}  Bc8 {[%clk 0:00:43]} 27. Nd5 {[%clk 0:00:33]}  bxc4 {[%clk 0:00:40]} 28. Qxb6+ {[%clk 0:00:26]}  axb6 {[%clk 0:00:38]} 29. dxc4 {[%clk 0:00:27]}  Be5 {[%clk 0:00:28]} 30. Re2 {[%clk 0:00:23]}  f6 {[%clk 0:00:21]} 31. Nxe7 {[%clk 0:00:19]}  Bb7 {[%clk 0:00:21]} 32. Bxb7 {[%clk 0:00:15]}  Kxb7 {[%clk 0:00:22]} 33. Rc2 {[%clk 0:00:11]}  Rd4 {[%clk 0:00:21]} 34. Rxh7 {[%clk 0:00:10]}  Rxg4 {[%clk 0:00:19]} 35. Nd5 {[%clk 0:00:10]}  Rgxc4 {[%clk 0:00:19]} 36. Rxc4 {[%clk 0:00:10]}  Rxc4 {[%clk 0:00:20]} 37. Rf7 {[%clk 0:00:08]}  Rd4 {[%clk 0:00:19]} 38. Ne3 {[%clk 0:00:04]}  b5 {[%clk 0:00:15]} 39. Kc2 {[%clk 0:00:05]}  Rf4 {[%clk 0:00:14]} 40. Nd1 {[%clk 0:00:03]}  Rf3 {[%clk 0:00:14]} 41. Kd2 {[%clk 0:00:03]}  Rb3 {[%clk 0:00:14]} 42. Kc2 {[%clk 0:00:03]}  Rf3 {[%clk 0:00:14]} 43. Re7 {[%clk 0:00:02]}  Kb6 {[%clk 0:00:15]} 44. Re6+ {[%clk 0:00:03]}  c6 {[%clk 0:00:16]} 45. Re8 {[%clk 0:00:04]}  Kc5 {[%clk 0:00:15]} 46. b3 {[%clk 0:00:04]}  Rf4 {[%clk 0:00:12]} 47. Rd8 {[%clk 0:00:04]}  Kb6 {[%clk 0:00:12]} 48. Kd3 {[%clk 0:00:03]}  Rh4 {[%clk 0:00:11]} 49. Rg8 {[%clk 0:00:03]}  Rh1 {[%clk 0:00:10]} 50. Ke2 {[%clk 0:00:03]}  Bd6 {[%clk 0:00:07]} 51. a4 {[%clk 0:00:03]}  bxa4 {[%clk 0:00:08]} 52. bxa4 {[%clk 0:00:04]}  Rh4 {[%clk 0:00:08]} 53. Ra8 {[%clk 0:00:04]}  Kb7 {[%clk 0:00:08]} 54. Ra5 {[%clk 0:00:05]}  Bc7 {[%clk 0:00:08]} 55. Rf5 {[%clk 0:00:05]}  Be5 {[%clk 0:00:09]} 56. Ne3 {[%clk 0:00:03]}  Rxa4 {[%clk 0:00:10]} 57. Kf3 {[%clk 0:00:03]}  c5 {[%clk 0:00:09]} 58. Ng4 {[%clk 0:00:03]}  Bd4 {[%clk 0:00:09]} 59. Nxf6 {[%clk 0:00:02]}  c4 {[%clk 0:00:10]} 60. Ke4 {[%clk 0:00:02]}  c3 {[%clk 0:00:06]} 61. Kd3 {[%clk 0:00:03]}  Kc6 {[%clk 0:00:04]} 62. Ne4 {[%clk 0:00:03]}  Bg7 {[%clk 0:00:04]} 63. Rf7 {[%clk 0:00:02]}  Be5 {[%clk 0:00:04]} 64. Re7 {[%clk 0:00:03]}  Bh8 {[%clk 0:00:03]} 65. Re8 {[%clk 0:00:03]}  Rd4+ {[%clk 0:00:03]} 66. Ke3 {[%clk 0:00:02]}  Bg7 {[%clk 0:00:04]} 67. Rc8+ {[%clk 0:00:02]}  Kd7 {[%clk 0:00:04]} 68. Rxc3 {[%clk 0:00:03]}  Rxe4+ {[%clk 0:00:04]} 69. Kxe4 {[%clk 0:00:03]}  Bxc3 {[%clk 0:00:04]} 70. f4 {[%clk 0:00:04]}  Bg7 {[%clk 0:00:05]} 71. f5 {[%clk 0:00:05]}  Ke7 {[%clk 0:00:06]} 72. f6+ {[%clk 0:00:06]}  Kxf6 {[%clk 0:00:06]} 1/2-1/2


[Site "https://www.chess.com"]

[Event "Titled Tuesday Blitz April 12 Early 2022"]
[White "Sjugirov, Sanan"]
[Black "MikeKorovin"]
[WhiteFideId "4189302"]
[WhiteElo "2602"]
[BlackElo "2716"]
[Result "1-0"]
[Round "03"]
[TimeControl "180+1"]
[Date "2022.04.12"]
[WhiteClock "0:00:45"]
[BlackClock "0:00:05"]

1. e4 {[%clk 0:03:00]}  e6 {[%clk 0:02:59]} 2. d4 {[%clk 0:03:00]}  d5 {[%clk 0:03:00]} 3. Nd2 {[%clk 0:03:00]}  Nc6 {[%clk 0:03:00]} 4. Ngf3 {[%clk 0:03:00]}  Nf6 {[%clk 0:03:01]} 5. e5 {[%clk 0:03:00]}  Nd7 {[%clk 0:03:01]} 6. Nb3 {[%clk 0:03:00]}  f6 {[%clk 0:03:01]} 7. Bb5 {[%clk 0:02:47]}  a6 {[%clk 0:02:59]} 8. Bxc6 {[%clk 0:02:47]}  bxc6 {[%clk 0:03:00]} 9. O-O {[%clk 0:02:41]}  a5 {[%clk 0:02:56]} 10. exf6 {[%clk 0:02:34]}  Qxf6 {[%clk 0:02:54]} 11. Bg5 {[%clk 0:02:34]}  Qg6 {[%clk 0:02:49]} 12. Bh4 {[%clk 0:02:34]}  Bd6 {[%clk 0:02:48]} 13. Bg3 {[%clk 0:02:33]}  O-O {[%clk 0:02:45]} 14. Re1 {[%clk 0:02:32]}  a4 {[%clk 0:02:41]} 15. Nc1 {[%clk 0:02:32]}  c5 {[%clk 0:02:20]} 16. c3 {[%clk 0:02:21]}  a3 {[%clk 0:02:14]} 17. b3 {[%clk 0:02:15]}  Ba6 {[%clk 0:02:09]} 18. Qd2 {[%clk 0:02:09]}  Nf6 {[%clk 0:01:11]} 19. Ne2 {[%clk 0:01:58]}  Ne4 {[%clk 0:01:09]} 20. Qe3 {[%clk 0:01:57]}  Bxe2 {[%clk 0:00:54]} 21. Rxe2 {[%clk 0:01:57]}  cxd4 {[%clk 0:00:51]} 22. cxd4 {[%clk 0:01:56]}  Bxg3 {[%clk 0:00:29]} 23. hxg3 {[%clk 0:01:56]}  Rac8 {[%clk 0:00:27]} 24. b4 {[%clk 0:01:54]}  Rb8 {[%clk 0:00:26]} 25. Qxa3 {[%clk 0:01:53]}  Rb6 {[%clk 0:00:15]} 26. Rc1 {[%clk 0:01:50]}  Rfb8 {[%clk 0:00:15]} 27. Rxc7 {[%clk 0:01:36]}  h6 {[%clk 0:00:13]} 28. Rb2 {[%clk 0:01:31]}  Qh5 {[%clk 0:00:08]} 29. Qa7 {[%clk 0:01:27]}  Qg4 {[%clk 0:00:07]} 30. a4 {[%clk 0:01:20]}  Kh8 {[%clk 0:00:05]} 31. a5 {[%clk 0:01:18]}  Rxb4 {[%clk 0:00:06]} 32. Qxb8+ {[%clk 0:01:18]}  Rxb8 {[%clk 0:00:06]} 33. Rxb8+ {[%clk 0:01:19]}  Kh7 {[%clk 0:00:07]} 34. Rbb7 {[%clk 0:01:19]}  Nd6 {[%clk 0:00:03]} 35. Rxg7+ {[%clk 0:01:19]}  Qxg7 {[%clk 0:00:04]} 36. Rxg7+ {[%clk 0:01:19]}  Kxg7 {[%clk 0:00:05]} 37. a6 {[%clk 0:01:20]}  Nb5 {[%clk 0:00:05]} 38. Kf1 {[%clk 0:01:20]}  Kf6 {[%clk 0:00:04]} 39. Ke2 {[%clk 0:01:20]}  Ke7 {[%clk 0:00:05]} 40. Kd3 {[%clk 0:01:19]}  Kd6 {[%clk 0:00:05]} 41. Ne5 {[%clk 0:01:19]}  Kc7 {[%clk 0:00:06]} 42. g4 {[%clk 0:01:18]}  Kb6 {[%clk 0:00:06]} 43. Nf7 {[%clk 0:01:18]}  Kxa6 {[%clk 0:00:05]} 44. Nxh6 {[%clk 0:01:19]}  Nd6 {[%clk 0:00:05]} 45. g5 {[%clk 0:01:19]}  Ne8 {[%clk 0:00:05]} 46. f4 {[%clk 0:01:17]}  Kb6 {[%clk 0:00:05]} 47. g4 {[%clk 0:01:17]}  Kc6 {[%clk 0:00:05]} 48. Nf7 {[%clk 0:01:16]}  Kd7 {[%clk 0:00:04]} 49. Ne5+ {[%clk 0:01:16]}  Ke7 {[%clk 0:00:04]} 50. f5 {[%clk 0:01:17]}  exf5 {[%clk 0:00:03]} 51. gxf5 {[%clk 0:01:18]}  Nd6 {[%clk 0:00:04]} 52. f6+ {[%clk 0:01:17]}  Ke6 {[%clk 0:00:04]} 53. f7 {[%clk 0:00:46]}  Nxf7 {[%clk 0:00:02]} 54. Nxf7 {[%clk 0:00:46]}  Kxf7 {[%clk 0:00:03]} 55. Kc3 {[%clk 0:00:43]}  Kg6 {[%clk 0:00:04]} 56. Kb4 {[%clk 0:00:44]}  Kxg5 {[%clk 0:00:05]} 57. Kc5 {[%clk 0:00:44]}  Kf6 {[%clk 0:00:04]} 58. Kxd5 {[%clk 0:00:44]}  Ke7 {[%clk 0:00:05]} 59. Kc6 {[%clk 0:00:45]} 1-0


[Site "https://www.chess.com"]

[Event "Titled Tuesday Blitz April 12 Early 2022"]
[White "Srihari L R"]
[Black "Prohorov, Olexandr"]
[WhiteFideId "46617116"]
[BlackFideId "14105578"]
[WhiteElo "2121"]
[BlackElo "1993"]
[Result "1-0"]
[Round "03"]
[TimeControl "180+1"]
[Date "2022.04.13"]
[WhiteClock "0:00:38"]
[BlackClock "0:00:03"]

1. Nf3 {[%clk 0:03:00]}  Nf6 {[%clk 0:02:56]} 2. c4 {[%clk 0:02:59]}  g6 {[%clk 0:02:56]} 3. b4 {[%clk 0:02:57]}  Bg7 {[%clk 0:02:55]} 4. Bb2 {[%clk 0:02:57]}  a5 {[%clk 0:02:55]} 5. b5 {[%clk 0:02:56]}  d6 {[%clk 0:02:54]} 6. e3 {[%clk 0:02:56]}  O-O {[%clk 0:02:55]} 7. d4 {[%clk 0:02:56]}  c5 {[%clk 0:02:53]} 8. Be2 {[%clk 0:02:51]}  cxd4 {[%clk 0:02:48]} 9. Nxd4 {[%clk 0:02:52]}  Nbd7 {[%clk 0:02:47]} 10. O-O {[%clk 0:02:52]}  Nc5 {[%clk 0:02:46]} 11. Nd2 {[%clk 0:02:52]}  e5 {[%clk 0:02:27]} 12. N4b3 {[%clk 0:02:51]}  Qe7 {[%clk 0:02:22]} 13. a4 {[%clk 0:02:46]}  b6 {[%clk 0:02:20]} 14. Nxc5 {[%clk 0:02:44]}  dxc5 {[%clk 0:02:18]} 15. Nf3 {[%clk 0:02:44]}  Ne4 {[%clk 0:01:59]} 16. Qc2 {[%clk 0:02:36]}  Bb7 {[%clk 0:01:59]} 17. Rad1 {[%clk 0:02:34]}  Rad8 {[%clk 0:01:57]} 18. h3 {[%clk 0:02:31]}  Ng5 {[%clk 0:01:55]} 19. Nxg5 {[%clk 0:02:20]}  Qxg5 {[%clk 0:01:55]} 20. e4 {[%clk 0:02:21]}  h5 {[%clk 0:01:42]} 21. Bc1 {[%clk 0:02:17]}  Qh4 {[%clk 0:01:38]} 22. Bf3 {[%clk 0:02:08]}  f5 {[%clk 0:01:30]} 23. Rxd8 {[%clk 0:02:02]}  Rxd8 {[%clk 0:01:29]} 24. Re1 {[%clk 0:02:02]}  f4 {[%clk 0:01:10]} 25. Rd1 {[%clk 0:01:56]}  Qe7 {[%clk 0:01:07]} 26. Bb2 {[%clk 0:01:53]}  Bf6 {[%clk 0:01:06]} 27. g3 {[%clk 0:01:42]}  fxg3 {[%clk 0:00:50]} 28. fxg3 {[%clk 0:01:43]}  Qe6 {[%clk 0:00:45]} 29. Rxd8+ {[%clk 0:01:25]}  Bxd8 {[%clk 0:00:45]} 30. Qd3 {[%clk 0:01:26]}  Be7 {[%clk 0:00:39]} 31. Kh2 {[%clk 0:01:25]}  Qd6 {[%clk 0:00:34]} 32. Qe2 {[%clk 0:01:13]}  Bg5 {[%clk 0:00:31]} 33. Bc3 {[%clk 0:01:13]}  Kg7 {[%clk 0:00:27]} 34. Bg2 {[%clk 0:01:11]}  Bc8 {[%clk 0:00:24]} 35. Bf1 {[%clk 0:01:04]}  Be6 {[%clk 0:00:20]} 36. Qf3 {[%clk 0:01:03]}  Bc8 {[%clk 0:00:15]} 37. Bd3 {[%clk 0:00:50]}  Bb7 {[%clk 0:00:13]} 38. Bc2 {[%clk 0:00:49]}  Bc8 {[%clk 0:00:13]} 39. Kg2 {[%clk 0:00:49]}  Bb7 {[%clk 0:00:13]} 40. h4 {[%clk 0:00:41]}  Bd2 {[%clk 0:00:13]} 41. Qd1 {[%clk 0:00:40]}  Qe6 {[%clk 0:00:02]} 42. Qxd2 {[%clk 0:00:38]}  Qxc4 {[%clk 0:00:03]} 43. Bxe5+ {[%clk 0:00:38]} 1-0


[Site "https://www.chess.com"]

[Event "Titled Tuesday Blitz April 12 Early 2022"]
[White "Steil-Antoni, Fiona"]
[Black "Nilsson, Joakim"]
[WhiteFideId "4001249"]
[BlackFideId "1723383"]
[WhiteElo "2059"]
[BlackElo "2207"]
[Result "0-1"]
[Round "03"]
[TimeControl "180+1"]
[Date "2022.04.13"]
[WhiteClock "0:00:01"]
[BlackClock "0:00:16"]

1. e4 {[%clk 0:03:00]}  c5 {[%clk 0:02:57]} 2. Nc3 {[%clk 0:03:00]}  Nc6 {[%clk 0:02:55]} 3. f4 {[%clk 0:03:00]}  g6 {[%clk 0:02:55]} 4. Nf3 {[%clk 0:03:00]}  Bg7 {[%clk 0:02:55]} 5. Bb5 {[%clk 0:03:01]}  Nd4 {[%clk 0:02:54]} 6. O-O {[%clk 0:03:01]}  a6 {[%clk 0:02:51]} 7. Bd3 {[%clk 0:02:59]}  d6 {[%clk 0:02:43]} 8. Nxd4 {[%clk 0:02:52]}  cxd4 {[%clk 0:02:42]} 9. Ne2 {[%clk 0:02:52]}  Nf6 {[%clk 0:02:39]} 10. c3 {[%clk 0:02:51]}  dxc3 {[%clk 0:02:35]} 11. dxc3 {[%clk 0:02:52]}  O-O {[%clk 0:02:35]} 12. h3 {[%clk 0:02:42]}  Bd7 {[%clk 0:02:35]} 13. Kh2 {[%clk 0:02:39]}  Bc6 {[%clk 0:02:35]} 14. Ng3 {[%clk 0:02:38]}  b5 {[%clk 0:02:28]} 15. Qe2 {[%clk 0:02:37]}  Qc7 {[%clk 0:02:27]} 16. Be3 {[%clk 0:02:36]}  Qb7 {[%clk 0:02:27]} 17. Bd4 {[%clk 0:02:37]}  Rad8 {[%clk 0:02:06]} 18. Rad1 {[%clk 0:02:29]}  Rfe8 {[%clk 0:01:59]} 19. a4 {[%clk 0:02:28]}  e5 {[%clk 0:01:58]} 20. fxe5 {[%clk 0:02:21]}  dxe5 {[%clk 0:01:58]} 21. Bc5 {[%clk 0:02:11]}  Rxd3 {[%clk 0:01:55]} 22. Rxd3 {[%clk 0:02:07]}  Nxe4 {[%clk 0:01:55]} 23. Nxe4 {[%clk 0:02:02]}  Bxe4 {[%clk 0:01:56]} 24. Re3 {[%clk 0:01:54]}  f5 {[%clk 0:01:54]} 25. Rd1 {[%clk 0:01:31]}  Bh6 {[%clk 0:01:50]} 26. Rxe4 {[%clk 0:01:20]}  fxe4 {[%clk 0:01:51]} 27. Qg4 {[%clk 0:01:10]}  bxa4 {[%clk 0:01:30]} 28. Rd7 {[%clk 0:00:57]}  Bf4+ {[%clk 0:01:19]} 29. Kh1 {[%clk 0:00:53]}  Qxb2 {[%clk 0:01:18]} 30. Rxh7 {[%clk 0:00:27]}  Qc1+ {[%clk 0:01:15]} 31. Bg1 {[%clk 0:00:26]}  Kxh7 {[%clk 0:01:13]} 32. Qd7+ {[%clk 0:00:26]}  Kh6 {[%clk 0:01:11]} 33. Qxe8 {[%clk 0:00:27]}  Be3 {[%clk 0:01:04]} 34. Qh8+ {[%clk 0:00:22]}  Kg5 {[%clk 0:01:04]} 35. Qxe5+ {[%clk 0:00:22]}  Kh4 {[%clk 0:00:54]} 36. Qf6+ {[%clk 0:00:08]}  Kh5 {[%clk 0:00:44]} 37. Qh8+ {[%clk 0:00:01]}  Bh6 {[%clk 0:00:43]} 38. Qe5+ {[%clk 0:00:01]}  g5 {[%clk 0:00:40]} 39. Qxe4 {[%clk 0:00:01]}  Bg7 {[%clk 0:00:31]} 40. Qg4+ {[%clk 0:00:01]}  Kh6 {[%clk 0:00:31]} 41. Qe6+ {[%clk 0:00:02]}  Kh7 {[%clk 0:00:30]} 42. Qf5+ {[%clk 0:00:02]}  Kg8 {[%clk 0:00:30]} 43. Qe6+ {[%clk 0:00:02]}  Kf8 {[%clk 0:00:30]} 44. Qc8+ {[%clk 0:00:02]}  Kf7 {[%clk 0:00:30]} 45. Qd7+ {[%clk 0:00:02]}  Kg6 {[%clk 0:00:29]} 46. Qe6+ {[%clk 0:00:03]}  Bf6 {[%clk 0:00:27]} 47. Qe4+ {[%clk 0:00:03]}  Kh6 {[%clk 0:00:26]} 48. c4 {[%clk 0:00:01]}  a3 {[%clk 0:00:19]} 49. Qe6 {[%clk 0:00:01]}  Qb2 {[%clk 0:00:16]} 0-1


[Site "https://www.chess.com"]

[Event "Titled Tuesday Blitz April 12 Early 2022"]
[White "Tari, Aryan"]
[Black "Tanenbaum, Zachary"]
[WhiteFideId "1510045"]
[BlackFideId "2060850"]
[WhiteElo "2567"]
[BlackElo "2168"]
[Result "0-1"]
[Round "03"]
[TimeControl "180+1"]
[Date "2022.04.12"]
[WhiteClock "0:00:14"]
[BlackClock "0:00:15"]

1. d4 {[%clk 0:02:53]}  d5 {[%clk 0:03:00]} 2. Nf3 {[%clk 0:02:52]}  Nf6 {[%clk 0:03:00]} 3. c3 {[%clk 0:02:53]}  c6 {[%clk 0:02:56]} 4. Bf4 {[%clk 0:02:51]}  Bf5 {[%clk 0:02:55]} 5. e3 {[%clk 0:02:40]}  Nbd7 {[%clk 0:02:53]} 6. c4 {[%clk 0:02:35]}  e6 {[%clk 0:02:53]} 7. Nc3 {[%clk 0:02:36]}  Be7 {[%clk 0:02:45]} 8. h3 {[%clk 0:02:37]}  O-O {[%clk 0:02:44]} 9. Be2 {[%clk 0:02:34]}  Ne4 {[%clk 0:02:43]} 10. O-O {[%clk 0:02:33]}  Bf6 {[%clk 0:02:21]} 11. Bh2 {[%clk 0:02:30]}  Re8 {[%clk 0:02:16]} 12. Nd2 {[%clk 0:02:13]}  Nxc3 {[%clk 0:02:08]} 13. bxc3 {[%clk 0:02:13]}  e5 {[%clk 0:02:06]} 14. cxd5 {[%clk 0:02:13]}  cxd5 {[%clk 0:02:07]} 15. Qb3 {[%clk 0:02:12]}  Nb6 {[%clk 0:02:03]} 16. a4 {[%clk 0:02:10]}  exd4 {[%clk 0:01:58]} 17. cxd4 {[%clk 0:02:04]}  Bxd4 {[%clk 0:01:57]} 18. Rae1 {[%clk 0:01:50]}  Be5 {[%clk 0:01:44]} 19. Bxe5 {[%clk 0:01:49]}  Rxe5 {[%clk 0:01:45]} 20. Nf3 {[%clk 0:01:49]}  Re7 {[%clk 0:01:44]} 21. a5 {[%clk 0:01:49]}  Nc4 {[%clk 0:01:43]} 22. Qb4 {[%clk 0:01:43]}  Nxa5 {[%clk 0:01:39]} 23. Rd1 {[%clk 0:01:35]}  Nc6 {[%clk 0:01:36]} 24. Qc5 {[%clk 0:01:35]}  Rd7 {[%clk 0:01:29]} 25. Bb5 {[%clk 0:01:35]}  Rd6 {[%clk 0:01:27]} 26. Rd2 {[%clk 0:01:26]}  a6 {[%clk 0:01:10]} 27. Ba4 {[%clk 0:01:24]}  b6 {[%clk 0:00:57]} 28. Qa3 {[%clk 0:01:23]}  Na5 {[%clk 0:00:54]} 29. Bb3 {[%clk 0:01:16]}  Nxb3 {[%clk 0:00:53]} 30. Qxb3 {[%clk 0:01:17]}  a5 {[%clk 0:00:48]} 31. Nd4 {[%clk 0:01:17]}  Bg6 {[%clk 0:00:40]} 32. Nb5 {[%clk 0:01:15]}  Rd7 {[%clk 0:00:40]} 33. Nc3 {[%clk 0:01:15]}  d4 {[%clk 0:00:39]} 34. Rfd1 {[%clk 0:01:15]}  d3 {[%clk 0:00:34]} 35. e4 {[%clk 0:01:15]}  Rc8 {[%clk 0:00:32]} 36. Qa3 {[%clk 0:01:12]}  Qe7 {[%clk 0:00:31]} 37. Qxe7 {[%clk 0:01:11]}  Rxe7 {[%clk 0:00:32]} 38. Rxd3 {[%clk 0:01:12]}  h6 {[%clk 0:00:26]} 39. f3 {[%clk 0:01:10]}  Rb7 {[%clk 0:00:22]} 40. Nb5 {[%clk 0:01:09]}  Ra8 {[%clk 0:00:20]} 41. Rd6 {[%clk 0:01:03]}  a4 {[%clk 0:00:20]} 42. Ra1 {[%clk 0:01:04]}  Ra5 {[%clk 0:00:19]} 43. Nd4 {[%clk 0:01:01]}  b5 {[%clk 0:00:17]} 44. Nc6 {[%clk 0:00:59]}  Ra8 {[%clk 0:00:16]} 45. Nb4 {[%clk 0:01:00]}  a3 {[%clk 0:00:16]} 46. Ra2 {[%clk 0:00:55]}  Ra4 {[%clk 0:00:16]} 47. Rd4 {[%clk 0:00:47]}  f6 {[%clk 0:00:16]} 48. Kf2 {[%clk 0:00:47]}  Bf7 {[%clk 0:00:17]} 49. Ra1 {[%clk 0:00:48]}  a2 {[%clk 0:00:16]} 50. Ke3 {[%clk 0:00:48]}  Bc4 {[%clk 0:00:16]} 51. Nc2 {[%clk 0:00:46]}  Bb3 {[%clk 0:00:16]} 52. Nb4 {[%clk 0:00:42]}  Rc7 {[%clk 0:00:16]} 53. Kd2 {[%clk 0:00:41]}  Rc4 {[%clk 0:00:16]} 54. Rxc4 {[%clk 0:00:42]}  Bxc4 {[%clk 0:00:16]} 55. Kc3 {[%clk 0:00:42]}  Ra3+ {[%clk 0:00:16]} 56. Kd4 {[%clk 0:00:40]}  Rb3 {[%clk 0:00:16]} 57. Nc2 {[%clk 0:00:36]}  Rb2 {[%clk 0:00:16]} 58. Kc3 {[%clk 0:00:36]}  Rb3+ {[%clk 0:00:15]} 59. Kd4 {[%clk 0:00:36]}  Rb1 {[%clk 0:00:15]} 60. Kc3 {[%clk 0:00:37]}  b4+ {[%clk 0:00:12]} 61. Kxc4 {[%clk 0:00:23]}  b3 {[%clk 0:00:13]} 62. Na3 {[%clk 0:00:13]}  Rxa1 {[%clk 0:00:13]} 63. Kxb3 {[%clk 0:00:14]}  Rg1 {[%clk 0:00:13]} 64. Kxa2 {[%clk 0:00:15]}  Rxg2+ {[%clk 0:00:13]} 65. Kb3 {[%clk 0:00:16]}  Rg3 {[%clk 0:00:14]} 66. Kc4 {[%clk 0:00:17]}  Rxf3 {[%clk 0:00:15]} 67. Nb5 {[%clk 0:00:17]}  Rxh3 {[%clk 0:00:15]} 68. Nd4 {[%clk 0:00:17]}  h5 {[%clk 0:00:15]} 69. Kd5 {[%clk 0:00:17]}  Rg3 {[%clk 0:00:14]} 70. Nf5 {[%clk 0:00:18]}  Rg4 {[%clk 0:00:15]} 71. Kd4 {[%clk 0:00:16]}  h4 {[%clk 0:00:15]} 72. Ke3 {[%clk 0:00:16]}  h3 {[%clk 0:00:15]} 73. Kf3 {[%clk 0:00:14]}  Rg5 {[%clk 0:00:15]} 0-1


[Site "https://www.chess.com"]

[Event "Titled Tuesday Blitz April 12 Early 2022"]
[White "Tregubov, Pavel V."]
[Black "Pesotskiy, Mikhail"]
[WhiteFideId "4115341"]
[BlackFideId "34164453"]
[WhiteElo "2341"]
[BlackElo "2010"]
[Result "0-1"]
[Round "03"]
[TimeControl "180+1"]
[Date "2022.04.13"]
[WhiteClock "0:00:16"]
[BlackClock "0:00:45"]

1. e4 {[%clk 0:03:00]}  e6 {[%clk 0:02:17]} 2. d4 {[%clk 0:02:58]}  d5 {[%clk 0:02:03]} 3. exd5 {[%clk 0:02:59]}  exd5 {[%clk 0:02:04]} 4. Nf3 {[%clk 0:02:59]}  Bd6 {[%clk 0:01:51]} 5. c4 {[%clk 0:02:57]}  Nf6 {[%clk 0:01:51]} 6. c5 {[%clk 0:02:56]}  Be7 {[%clk 0:01:51]} 7. Bd3 {[%clk 0:02:55]}  O-O {[%clk 0:01:52]} 8. O-O {[%clk 0:02:55]}  b6 {[%clk 0:01:53]} 9. Be3 {[%clk 0:02:52]}  Re8 {[%clk 0:01:46]} 10. h3 {[%clk 0:02:49]}  Nbd7 {[%clk 0:01:46]} 11. b4 {[%clk 0:02:34]}  a5 {[%clk 0:01:46]} 12. c6 {[%clk 0:02:25]}  Nf8 {[%clk 0:01:46]} 13. b5 {[%clk 0:02:26]}  Ng6 {[%clk 0:01:45]} 14. Nc3 {[%clk 0:02:25]}  Be6 {[%clk 0:01:45]} 15. Re1 {[%clk 0:02:22]}  Bb4 {[%clk 0:01:41]} 16. Qc2 {[%clk 0:02:18]}  Ne4 {[%clk 0:01:39]} 17. Bxe4 {[%clk 0:02:04]}  dxe4 {[%clk 0:01:40]} 18. Nd2 {[%clk 0:01:57]}  f5 {[%clk 0:01:40]} 19. f4 {[%clk 0:01:44]}  Qh4 {[%clk 0:01:00]} 20. Rf1 {[%clk 0:01:37]}  Rad8 {[%clk 0:01:00]} 21. a3 {[%clk 0:01:34]}  Bxc3 {[%clk 0:00:57]} 22. Qxc3 {[%clk 0:01:34]}  Ne7 {[%clk 0:00:57]} 23. Rae1 {[%clk 0:01:22]}  Nd5 {[%clk 0:00:56]} 24. Qb2 {[%clk 0:01:20]}  Qf6 {[%clk 0:00:53]} 25. Nc4 {[%clk 0:01:10]}  Nxe3 {[%clk 0:00:51]} 26. Nxe3 {[%clk 0:01:11]}  Qxd4 {[%clk 0:00:52]} 27. Qxd4 {[%clk 0:01:00]}  Rxd4 {[%clk 0:00:53]} 28. Rd1 {[%clk 0:01:00]}  Red8 {[%clk 0:00:53]} 29. Rxd4 {[%clk 0:00:57]}  Rxd4 {[%clk 0:00:54]} 30. g4 {[%clk 0:00:57]}  g6 {[%clk 0:00:53]} 31. gxf5 {[%clk 0:00:49]}  gxf5 {[%clk 0:00:54]} 32. Kf2 {[%clk 0:00:48]}  Rd2+ {[%clk 0:00:49]} 33. Ke1 {[%clk 0:00:48]}  Rd3 {[%clk 0:00:50]} 34. Kf2 {[%clk 0:00:44]}  Rxa3 {[%clk 0:00:48]} 35. Rg1+ {[%clk 0:00:44]}  Kf7 {[%clk 0:00:48]} 36. Rg5 {[%clk 0:00:45]}  h6 {[%clk 0:00:49]} 37. Rg1 {[%clk 0:00:33]}  Ra2+ {[%clk 0:00:49]} 38. Kg3 {[%clk 0:00:32]}  Ra3 {[%clk 0:00:48]} 39. Kf2 {[%clk 0:00:25]}  Rb3 {[%clk 0:00:49]} 40. Rd1 {[%clk 0:00:19]}  Rxb5 {[%clk 0:00:45]} 41. Rd8 {[%clk 0:00:19]}  Rc5 {[%clk 0:00:45]} 42. Rh8 {[%clk 0:00:18]}  Kg7 {[%clk 0:00:44]} 43. Re8 {[%clk 0:00:16]}  Rxc6 {[%clk 0:00:45]} 0-1


[Site "https://www.chess.com"]